Workbook

Sheet VLEESKUIKENS
E1: Rekenmodel Vee-combistof - pluimvee (V2.0, 15 maart 2021) | J1: Berekenen van het reductiepercentage van combinaties van fijnstof reducerende technieken
H3: TOELICHTING GEBRUIK REKENMODEL (Er is online ook een handleiding beschikbaar).
E4: invullen | F4: naam | H4: Bij alle GEEL gekleurde vakjes dient een keuze gemaakt te worden. Ga op het vakje staan, klik rechts naast vakje en kies een optie.
E5: invullen | F5: adres | H5: De gerealiseerde reductiepercentages staan in GROENE blokjes vermeld. Helemaal rechts is het reductiepercentage van de combinatie van de fijnstofreducerende
E6: =TODAY() -> 2021-03-12 | F6: datum | H6: technieken weergegeven. Als combinaties niet mogelijk of zinvol zijn, verschijnt er tekst in ROOD. Bij 'niet mogelijk' dient u keuze(s) aan te passen.
H7: Bij warmtewisselaar en stoffilter kan de ventilatiehoeveelheid door een techniek aangepast worden met de pijltjes omhoog/omlaag.
C10: ̌ | H10: =IF(F14+H16=0,"Geen warmtewisselaar","Warmtewisselaar") -> Geen warmtewisselaar | Q10: Reductiepercentage PM10
H11: =IF(H10="warmtewisselaar","Reductiepercentage WW 80%"," ") ->  | J11: =IF(L20="geen techniek",F14+H16,IF(J13="ja",0,F14+H16)) -> 0 | K11: m3/uur | L11: =IF(L20="Biofilter",IF(H15="ja",IF(J14>0,"Deze combinatie met WW stoffilter is toepasbaar, maar niet zinvol"," ")," "),IF(L20="bio wasser 60%",IF(H15="ja",IF(J14>0,"Deze combinatie met WW stoffilter is toepasbaar, maar niet zinvol"," ")," "),IF(L20="bio wasser 75%",IF(H15="ja",IF(J14>0,"Deze combinatie met WW stoffilter is toepasbaar, maar niet zinvol"," ")," ")," "))) -> 
H12: =ROUND(IF(H15="nee",'wisselend debiet en reductie'!$O$8*(1-E23),'wisselend debiet en reductie'!$Q$8*(1-E23)),2) -> 0 | I12: ="Lucht WW door overige techniek?" -> Lucht WW door overige techniek?
E13: Stal voor | H13: Warmtewisselaar met stoffilter? | J13: NEE
D14: 0 | E14: VLEESKUIKENS | F14: =MAX(0,IF(D14+D19>J25*100,(J25-F20),D14/100)) -> 0 | G14: m3/uur | H14: =IF(F15=0," ","Reductie% stoffilter 99%") -> Reductie% stoffilter 99% | J14: =IF(L20="geen techniek",0,IF(J13="ja",F14+H16,0)) -> 0 | K14: m3/uur
D15: 75 | F15: % t.o.v. maximum | H15: NEE | I15: =IF(J13="nee"," ",IF(L20="geen techniek",IF(J13="ja","Indien 'geen techniek', dan is er geen luchtstroom")," ")) -> 
F16: =F14/J25 -> 0 | G16: =IF(F14>0,"Reset: Zet ventilatie door WW en/of stoffilter in 1 klik op 0 m3",IF(F20>0,"Zet ventilatie door WW en/of stoffilter in 1 klik op 0 m3"," ")) -> 
I17: =IF(J11=0," ",IF(L20="chemische wasser 35%","Alle lucht moet door overige techniek vanwege ammoniak en/of geur",IF(L20="chemische wasser 70%","Alle lucht moet door overige techniek vanwege ammoniak en/of geur",IF(L20="Bio wasser 60%","Alle lucht moet door overige techniek vanwege ammoniak en/of geur",IF(L20="Bio wasser 75%","Alle lucht moet door overige techniek vanwege ammoniak en/of geur",IF(L20="Biofilter","Alle lucht moet door overige techniek vanwege ammoniak en/of geur",IF(L20="Luchtconditioneringsunit"," "," "))))))) ->  | M17: =IF(F14>0,IF(L20="Luchtconditioneringsunit","Twee keer eenzelfde type techniek in de uitgaande luchtstroom is niet logisch"," ")," ") -> 
E18: Staltechniek | H18: =IF(F20=0,"Geen stoffilter","Droog stoffilter") -> Geen stoffilter | L18: Overige technieken
D19: 0 | E19: GEEN STALTECHNIEK | H19: =IF(F20=0," ","Reductie% stoffilter 99%") ->  | L19: =IF(L20="chemische wasser 35%","potentieel reductie: 35%",IF(L20="chemische wasser 70%","potentieel reductie: 70%",IF(L20="bio wasser 60%","potentieel reductie: 60%",IF(L20="bio wasser 75%","potentieel reductie: 75%",IF(L20="biofilter","potentieel reductie: 80%",IF(L20="waterluchtwassysteem","potentieel reductie: 33%",IF(L20="droogfilterwand","potentieel reductie: 40%",IF(L20="ionisatiefilter","potentieel reductie: 57%",IF(L20="luchtconditioneringsunit","potentieel reductie: 80%"," "))))))))) ->  | M19: =IF(F20>0,IF(L20="chemische wasser 35%","Alle lucht moet door de luchtwasser of biofilter. De combinatie met een stoffilter is daarom niet mogelijk.",IF(L20="chemische wasser 70%","Alle lucht moet door de luchtwasser of biofilter. De combinatie met een stoffilter is daarom niet mogelijk.",IF(L20="bio wasser 60%","Alle lucht moet door de luchtwasser of biofilter. De combinatie met een stoffilter is daarom niet mogelijk.",IF(L20="bio wasser 75%","Alle lucht moet door de luchtwasser of biofilter. De combinatie met een stoffilter is daarom niet mogelijk.",IF(L20="biofilter","Alle lucht moet door de luchtwasser of biofilter. De combinatie met een stoffilter is daarom niet mogelijk."," ")))))," ") -> 
E20: =IF(E19="geen staltechniek"," ",IF(E19="negatieve ionisatie",IF(E14="vleeskuikens"," ","Deze techniek kan alleen bij vleeskuikens"),IF(E19="strooiselschuif",IF(E14="leghennen voliere"," ","Deze techniek kan alleen bij leghennen voliere"),IF(E19="oliefilm bij voliere dmv leidingen",IF(E14="leghennen voliere"," ",IF(E14="opfok leghennen voliere"," ",IF(E14="Vleeskuikenouderdieren voliere"," ","Deze techniek kan alleen bij (opfok)leghennen en vleeskuikenouderdieren voliere"))),IF(E19="strooiselschuif icm oliefilm bij voliere dmv leidingen",IF(E14="leghennen voliere"," ","Deze techniek kan alleen bij leghennen voliere"),IF(E19="oliefilm dmv olierobot",IF(E14="opfok leghennen grondhuisvesting"," ",IF(E14="leghennen grondhuisvesting"," ",IF(E14="vleeskuikenouderdieren grondhuisvesting"," ","Deze techniek kan alleen bij (opfok)leghennen en vleeskuikenouderdieren grondhuisvesting")))," ")))))) ->  | F20: =MAX(0,IF(D14+D19>J25*100,(J25*100-D14)/100,D19/100)) -> 0 | G20: m3/uur | H20: =ROUNDDOWN(IF(F14=0,'wisselend debiet en reductie'!$M$8*(1-E23),'wisselend debiet en reductie'!$P$8*(1-E23)),2) -> 0 | L20: GEEN TECHNIEK
F21: =J25-F14-F20 -> 6.176199161 | G21: m3/uur | J21: =IF(L20="geen techniek",0,F21) -> 0 | K21: m3/uur | L21: Reductiepercentage overige techniek | M21: =IF(L20="luchtconditioneringsunit"," ",IF(L20="geen techniek"," ",IF(L20="chemische wasser 35%"," ",IF(L20="chemische wasser 70%"," ",IF(L20="bio wasser 60%"," ",IF(L20="bio wasser 75%"," ",IF(L20="waterluchtwassysteem"," ",IF(L25="biofilter"," ",IF(L20="Droogfilterwand"," ",IF(L20="ionisatiefilter",IF(E19="ionisatiesysteem met negatieve coronadraden","Combinatie van ionisatietechnieken is niet zinvol",IF(E19="ionisatie d.m.v. koolstofborsteltjes","Combinatie van ionisatietechnieken is niet zinvol",IF(E19="ionisatie d.m.v. coronadraden","Combinatie van ionisatietechnieken is niet zinvol",IF(E19="ionisatie d.m.v. ionisatie-units","Combinatie van ionisatietechnieken is niet zinvol"," "))))," ")))))))))) -> 
E22: Reductiepercentage in stal | F22: Max. ventilatiedebiet m3/d/uur | L22: =IF(M17="Twee keer eenzelfde type techniek in de uitgaande luchtstroom is niet logisch","error",(IF(I17="Alle lucht moet door overige techniek vanwege ammoniak en/of geur","error",IF(M19="Alle lucht moet door de luchtwasser of biofilter. De combinatie met een stoffilter is daarom niet mogelijk.","error",IF(L11="Combinatie met warmtewisselaar is niet toegestaan","error",IF(F20=0,IF(J13="ja",'wisselend debiet en reductie'!$U$8*(1-E23),'wisselend debiet en reductie'!$S$8*(1-E23)),IF(F14=0,'wisselend debiet en reductie'!$T$8*(1-E23),IF(F14>0,IF(F20>0,IF(J14=0,'wisselend debiet en reductie'!$V$8*(1-E23),IF(J14>0,'wisselend debiet en reductie'!$U$8*(1-E23),'wisselend debiet en reductie'!$W$8*(1-E23)))))))))))) -> 0 | Q22: =ROUNDDOWN(100%-(1-E23)+(H20+H12)+L22,2) -> 0
E23: =IF(E19="ionisatieSYSTEEM MET NEGATIEVE CORONADRADEN",49%,IF(E19="ionisatie d.m.v. koolstofborsteltjes",31%,IF(E19="ionisatie d.m.v. coronadraden",52%,IF(E19="ionisatie d.m.v. ionisatie-units",16%,0)))) -> 0 | G23: =J11+J14+J21+J23 -> 6.176199161 | J23: =F20+F21-H16-J21 -> 6.176199161 | K23: m3/uur
F24: =IF(L20="Luchtconditioneringsunit",IF(H20>0,"Niet alle lucht gaat door luchtconditioneringsunit, dus niet combineren met droog stoffilter"," ")," ") -> 
D25: GEEN STALTECHNIEK | H25: Maximale ventilatie in de stal | J25: ='Max waarden'!$B$10 -> 6.176199161 | K25: m3/uur
D26: IONISATIESYSTEEM MET NEGATIEVE CORONADRADEN | J26: =IF(G23<>J25,"Optelsom debiet klopt niet"," ") -> 
D27: IONISATIE d.m.v. KOOLSTOFBORSTELTJES | E27: Gemaakt in opdracht van het ministerie van Infrastructuur en Waterstaat
D28: IONISATIE d.m.v. CORONADRADEN
D29: IONISATIE d.m.v. IONISATIE-UNITS
D32: =IF(H19="zonder stoffilter",IF(D33="opfok leghennen",IF(H12="warmtewisselaar 13%",0.2,IF(H12="warmtewisselaar 31%",0.43,IF(H12="warmtewisselaar 37%",0.55,IF(H12="warmtewisselaar 50%",0.78)))),IF(D33="leghennen",IF(H12="warmtewisselaar 13%",0.4,IF(H12="warmtewisselaar 31%",1,IF(H12="warmtewisselaar 37%",1.25,IF(H12="warmtewisselaar 50%",1.8)))),IF(E14="opfok vleeskuikenouderdieren",IF(H12="warmtewisselaar 13%",0.4,IF(H12="warmtewisselaar 31%",1,IF(H12="warmtewisselaar 37%",1.3,IF(H12="warmtewisselaar 50%",1.9)))),IF(D33="vleeskuikenouderdieren",IF(H12="warmtewisselaar 13%",0.6,IF(H12="warmtewisselaar 31%",1.5,IF(H12="warmtewisselaar 37%",1.85,IF(H12="warmtewisselaar 50%",2.9))))))+IF(E14="vleeskuikens",IF(H12="warmtewisselaar 13%",0.35,IF(H12="warmtewisselaar 31%",1,IF(H12="warmtewisselaar 37%",1.3,IF(H12="warmtewisselaar 50%",2,0)))))+IF(E14="vleeseenden",IF(H12="warmtewisselaar 13%",0.8,IF(H12="warmtewisselaar 31%",2.3,IF(H12="warmtewisselaar 37%",3.15,IF(H12="warmtewisselaar 50%",4.8)))))))+IF(E14="kalkoen hennen",IF(H12="warmtewisselaar 13%",1.1,IF(H12="warmtewisselaar 31%",3,IF(H12="warmtewisselaar 37%",3.85,IF(H12="warmtewisselaar 50%",5.6)))))+IF(E14="kalkoen hanen",IF(H12="warmtewisselaar 13%",2.5,IF(H12="warmtewisselaar 31%",6.2,IF(H12="warmtewisselaar 37%",8.2,IF(H12="warmtewisselaar 50%",11.7))))),0)+IF(H19="met stoffilter",IF(D33="opfok leghennen",IF(H12="warmtewisselaar 13%",0.15,IF(H12="warmtewisselaar 31%",0.35,IF(H12="warmtewisselaar 37%",0.4,IF(H12="warmtewisselaar 50%",0.6)))),IF(D33="leghennen",IF(H12="warmtewisselaar 13%",0.35,IF(H12="warmtewisselaar 31%",0.85,IF(H12="warmtewisselaar 37%",1,IF(H12="warmtewisselaar 50%",1.4)))),IF(E14="leghennen grondhuisvesting",IF(H12="warmtewisselaar 13%",0.35,IF(H12="warmtewisselaar 31%",0.85,IF(H12="warmtewisselaar 37%",1,IF(H12="warmtewisselaar 50%",1.4)))),IF(E14="opfok vleeskuikenouderdieren",IF(H12="warmtewisselaar 13%",0.35,IF(H12="warmtewisselaar 31%",0.85,IF(H12="warmtewisselaar 37%",1.1,IF(H12="warmtewisselaar 50%",1.45)))),IF(D33="vleeskuikenouderdieren",IF(H12="warmtewisselaar 13%",0.5,IF(H12="warmtewisselaar 31%",1.2,IF(H12="warmtewisselaar 37%",1.5,IF(H12="warmtewisselaar 50%",2.1))))))+IF(E14="vleeskuikens",IF(H12="warmtewisselaar 13%",0.3,IF(H12="warmtewisselaar 31%",0.75,IF(H12="warmtewisselaar 37%",1,IF(H12="warmtewisselaar 50%",1.45,0)))))+IF(E14="vleeseenden",IF(H12="warmtewisselaar 13%",0.7,IF(H12="warmtewisselaar 31%",1.9,IF(H12="warmtewisselaar 37%",2.3,IF(H12="warmtewisselaar 50%",3.6)))))))+IF(E14="kalkoen hennen",IF(H12="warmtewisselaar 13%",0.9,IF(H12="warmtewisselaar 31%",2.5,IF(H12="warmtewisselaar 37%",3,IF(H12="warmtewisselaar 50%",4.3)))))+IF(E14="kalkoen hanen",IF(H12="warmtewisselaar 13%",2.2,IF(H12="warmtewisselaar 31%",5.3,IF(H12="warmtewisselaar 37%",6.2,IF(H12="warmtewisselaar 50%",9)))))),0) -> 0
D33: =IF(E14="OPFOK LEGHENNEN KOOI/KOLONIE","opfok leghennen",IF(E14="opfok leghennen grondhuisvesting","opfok leghennen",IF(E14="opfok leghennen voliere","opfok leghennen",IF(E14="leghennen verrijkte kooi/kolonie","leghennen",IF(E14="leghennen grondhuisvesting","leghennen",IF(E14="leghennen voliere","leghennen",IF(E14="vleeskuikenouderdieren groepskooi","vleeskuikenouderdieren",IF(E14="vleeskuikenouderdieren grondhuisvesting","vleeskuikenouderdieren",IF(E14="vleeskuikenouderdieren voliere","vleeskuikenouderdieren",0))))))))) -> 0
L42: Kies ALLE VENTILATIELUCHT ivm vereiste NH3 reductie

Sheet PLUIMVEECATEGORIE (hidden)
C3: LEGPLUIMVEE | I3: VLEESPLUIMVEE | P3: OPFOK LEGHENNEN KOOI/KOLONIE
C4: OPFOK | F4: LEGHENNEN | P4: OPFOK LEGHENNEN GRONDHUISVESTING
P5: OPFOK LEGHENNEN VOLIERE
P6: LEGHENNEN VERRIJKTE KOOI/KOLONIE
P7: LEGHENNEN GRONDHUISVESTING
P8: LEGHENNEN VOLIERE
P9: OPFOK VLEESKUIKENOUDERDIEREN
P10: VLEESKUIKENOUDERDIEREN GROEPSKOOI
P11: VLEESKUIKENOUDERDIEREN VOLIERE
P12: VLEESKUIKENOUDERDIEREN GRONDHUISVESTING
P13: VLEESKUIKENS
P14: KALKOEN HENNEN
P15: KALKOEN HANEN
P16: VLEESEENDEN

Sheet wisselend debiet en reductie (hidden)
A1: Lft (dg) | B1: Gew. (g) | C1: MG | D1: Voer (g/d) | E1: Totaal deb update (m3/d/u) | F1: Hoofd deb update minus WW (m3/d/u) | G1: Deb. w.wisselaar (m3/u/d) | H1: Deb. Alleen Stoffilter (m3/u/d) | I1: Deb. Ww en Stoffilter (m3/u/d) | J1: PM10 conc (mg/m3) | K1: #dieren | L1: Emissie PM10 zonder reductie (g/dpl/j) | M1: Emissie alleen stoffilter | N1: Emissie (g/dpl/jr) bij ..% red. WW en ..%red hoofddebiet | O1: Emissie alleen ww | P1: Emissie ww + stand alone stoffilter | Q1: Emissie Stoffilter en ww achter elkaar | R1: Emissie na overige techniek (g/dpl/jr) | AB1: Berekeningen bij uitbroeden/opfokken en overplaatsen
J2: Achtergrond | R2: 0 | S2: reductie in de stal
J3: =+J4 -> 0.026 | R3: 0.8 | S3: reductie wwlaar zonder droge stoffilters
J4: 0.026 | R4: =IF(VLEESKUIKENS!$H$16=0,VLEESKUIKENS!F14,VLEESKUIKENS!$H$16) -> 0 | S4: max. debiet door wwlaar/droge stoffilters (m3/u/d) | AC4: zonder reductie | AE4: met reductie
R5: =VLEESKUIKENS!$F$20 -> 0 | S5: max. debiet stoffilter stand alone | AB5: verhouding plaatsen | AC5: 1:2 | AD5: 1:1 | AE5: 1:2 | AF5: 1:1
R6: =IF(VLEESKUIKENS!$L$20="chemische wasser 35%",35%,IF(VLEESKUIKENS!$L$20="chemische wasser 70%",70%,IF(VLEESKUIKENS!$L$20="bio wasser 60%",60%,IF(VLEESKUIKENS!$L$20="bio wasser 75%",75%,IF(VLEESKUIKENS!$L$20="biofilter",80%,IF(VLEESKUIKENS!$L$20="waterluchtwassysteem",33%,IF(VLEESKUIKENS!$L$20="droogfilterwand",40%,IF(VLEESKUIKENS!$L$20="ionisatiefilter",57%,IF(VLEESKUIKENS!$L$20="LUCHTCONDITIONERINGSUNIT",IF(VLEESKUIKENS!$F$24="Niet alle lucht gaat door luchtconditioneringsunit, dus niet combineren met droog stoffilter","error",80%),0))))))))) -> 0 | S6: reductie overige techniek ALLE lucht
P7: =Q8+P8 -> 0 | R7: =VLEESKUIKENS!$F$14 -> 0 | S7: max. debiet stoffilter met ww | AA7: trad. | AB7: uitbroed/opfok-systeem
L8: =$L$57+1 -> 1 | M8: =MIN(95%,IF(M57<50%,$M$57*99%,M57)) -> 0 | N8: =$N$57 -> 0 | O8: =$O$57*99.6% -> 0 | P8: =$P$57*99% -> 0 | Q8: =MIN(95%,IF(Q57>42%,Q57*1.025,IF($Q$57<24%,Q57,IF(Q57<35.5%,Q57*1.05,Q57)))) -> 0 | R8: =ROUND($R$57,3) -> 0 | S8: =ROUND($S$57,3) -> 0 | T8: =ROUND($T$57,3) -> 0 | U8: =$U$57 -> 0 | V8: =$V$57 -> 0 | W8: =$W$57 -> 0 | X8: gemiddelde reductie | AB8: Overplaatsen op .... dagen | AC8: 13 | AD8: 19 | AE8: 13 | AF8: 19
A9: 0 | B9: 42 | K9: 1 | P9: =O8+P8 -> 0 | R9: lucht ww i.c.m. filter via techniek | S9: lucht ww niet via techniek | T9: lucht ww niet via techniek wel via stoffilter | U9: ww incl stoffilter via techniek | V9: beiden niet via techniek | W9: ww wel via overige techniek | AB9: dagen eieren | AC9: 3 | AD9: 3 | AE9: 3 | AF9: 3
A10: 1 | B10: 53 | C10: =(B10/1000)^0.75 -> 0.1104604739 | D10: 14 | E10: 0.1492553114 | F10: =E10-G10 -> 0.1492553114 | G10: =IF($R$4>0<E10,E10,IF($R$4>E10,E10,$R$4)) -> 0 | H10: =IF(E10<$R$5,E10-G10,$R$5) -> 0 | I10: =MIN(R$5,E10-G10) -> 0 | J10: 0.3364 | K10: =K9-0.0017 -> 0.9983 | L10: =($J10-$J$3)/1000*$E10*24*365*$K10 -> 0.405150785 | M10: =IF(E10>$R$5,L10-(R$5)/E10*L10*99%,L10-(E10)/E10*L10*99%) -> 0.405150785 | N10: =(((($J10*(1-$R$2))-$J$3)/1000*$F10*24*365*$K10)*(1-R$5))+(((($J10*(1-$R$2))-$J$3)/1000*$G10*24*365*$K10)*(1-R$3)) -> 0.405150785 | O10: =(((($J10)-$J$3)/1000*$F10*24*365*$K10))+(((($J10)-$J$3)/1000*$G10*24*365*$K10)*(1-R$3)) -> 0.405150785 | P10: =IF(I10=0,L10,IF(I10>$R$5,L10-(R$5)/E10*L10*99%,L10-(I10)/E10*L10*99%)) -> 0.405150785 | Q10: =(((($J10)-$J$3)/1000*$F10*24*365*$K10))+(((($J10)-$J$3)/1000*$G10*24*365*$K10)*(1-95%)) -> 0.405150785 | R10: =IF(E10-G10-H10>=0,L10-((E10-G10*80%-H10*95%)/E10*L10)*$R$6,IF(G10>H10,L10-((E10-G10)/E10*L10)*$R$6,L10-((E10-H10)/E10*L10)*$R$6)) -> 0.405150785 | S10: =IF(E10-G10-H10>=0,L10-((E10-G10-H10)/E10*L10)*$R$6,IF(G10>H10,L10-((E10-G10)/E10*L10)*$R$6,L10-((E10-H10)/E10*L10)*$R$6)) -> 0.405150785 | T10: =L10-(E10-H10)/E10*L10*$R$6 -> 0.405150785 | U10: =IF(VLEESKUIKENS!$H$15="ja",L10-((E10-G10*95%-I10)/E10*L10)*$R$6,L10-((E10-G10*80%-I10)/E10*L10)*$R$6) -> 0.405150785 | V10: =L10-((E10-G10-I10)/E10*L10)*$R$6 -> 0.405150785 | W10: =L10-(E10-H10)/E10*L10*$R$6 -> 0.405150785 | X10: =M10/L10 -> 1 | AB10: dagen leegstand | AC10: =AC11-AC8-AC9 -> 3 | AD10: 11 | AE10: =AE11-AE8-AE9 -> 3 | AF10: =AF11-AF8-AF9 -> 11
A11: 2 | B11: 64 | C11: 0.1272433166 | D11: 16 | E11: 0.1634420247 | F11: =E11-G11 -> 0.1634420247 | G11: 0 | H11: 0 | I11: 0 | J11: 0.4814472395 | K11: 0.996 | L11: =($J11-$J$3)/1000*$E11*24*365*$K11 -> 0.649479208 | M11: =IF(E11>$R$5,L11-(R$5)/E11*L11*99%,L11-(E11)/E11*L11*99%) -> 0.649479208 | N11: 0.649479208 | O11: =(((($J11)-$J$3)/1000*$F11*24*365*$K11))+(((($J11*(1-$R$2))-$J$3)/1000*$G11*24*365*$K11)*(1-R$3)) -> 0.649479208 | P11: 0.649479208 | Q11: =(((($J11)-$J$3)/1000*$F11*24*365*$K11))+(((($J11)-$J$3)/1000*$G11*24*365*$K11)*(1-95%)) -> 0.649479208 | R11: =IF(E11-G11-H11>=0,L11-((E11-G11*80%-H11*95%)/E11*L11)*$R$6,IF(G11>H11,L11-((E11-G11)/E11*L11)*$R$6,L11-((E11-H11)/E11*L11)*$R$6)) -> 0.649479208 | S11: =IF(E11-G11-H11>=0,L11-((E11-G11-H11)/E11*L11)*$R$6,IF(G11>H11,L11-((E11-G11)/E11*L11)*$R$6,L11-((E11-H11)/E11*L11)*$R$6)) -> 0.649479208 | T11: =L11-(E11-H11)/E11*L11*$R$6 -> 0.649479208 | U11: =IF(VLEESKUIKENS!$H$15="ja",L11-((E11-G11*95%-I11)/E11*L11)*$R$6,L11-((E11-G11*80%-I11)/E11*L11)*$R$6) -> 0.649479208 | V11: 0.649479208 | W11: =L11-(E11-H11)/E11*L11*$R$6 -> 0.649479208 | X11: =M11/L11 -> 1 | AB11: dagen/ronde | AC11: 19 | AD11: 33 | AE11: 19 | AF11: 33
A12: 3 | B12: 80 | C12: 0.1504241237 | D12: 18 | E12: 0.1789771848 | F12: 0.1789771848 | G12: 0 | H12: 0 | I12: 0 | J12: 0.5937766294 | K12: 0.994 | L12: 0.8848418917 | M12: 0.8848418917 | N12: 0.8848418917 | O12: 0.8848418917 | P12: 0.8848418917 | Q12: 0.8848418917 | R12: 0.8848418917 | S12: 0.8848418917 | T12: 0.8848418917 | U12: =IF(VLEESKUIKENS!$H$15="ja",L12-((E12-G12*95%-I12)/E12*L12)*$R$6,L12-((E12-G12*80%-I12)/E12*L12)*$R$6) -> 0.8848418917 | V12: 0.8848418917 | W12: 0.8848418917 | X12: 1 | AB12: # rondes/jr | AC12: =365/AC11 -> 19.21052632 | AD12: 11.06060606 | AE12: =365/AE11 -> 19.21052632 | AF12: =365/AF11 -> 11.06060606
A13: 4 | B13: 98 | C13: 0.1751537971 | D13: 20 | E13: 0.1959889615 | F13: 0.1959889615 | G13: 0 | H13: 0 | I13: 0 | J13: 0.6890352093 | K13: 0.992 | L13: 1.129234093 | M13: 1.129234093 | N13: 1.129234093 | O13: 1.129234093 | P13: 1.129234093 | Q13: 1.129234093 | R13: 1.129234093 | S13: 1.129234093 | T13: 1.129234093 | U13: =IF(VLEESKUIKENS!$H$15="ja",L13-((E13-G13*95%-I13)/E13*L13)*$R$6,L13-((E13-G13*80%-I13)/E13*L13)*$R$6) -> 1.129234093 | V13: 1.129234093 | W13: 1.129234093 | X13: 1 | AB13: emissie/ronde (gam) | AC13: =AVERAGE(L10:L22)/$AA$23 -> 0.3164395111 | AD13: =AVERAGE(L10:L28)/$AA$23 -> 0.5543019661 | AE13: =AVERAGE(N10:N22)/$AA$23 -> 0.3164395111 | AF13: =AVERAGE(N10:N28)/$AA$23 -> 0.5543019661
A14: 5 | B14: 117 | C14: 0.2000503872 | D14: 23 | E14: 0.2146177071 | F14: 0.2146177071 | G14: 0 | H14: 0 | I14: 0 | J14: 0.7733271779 | K14: =K13-0.0017 -> 0.9903 | L14: 1.391384664 | M14: 1.391384664 | N14: 1.391384664 | O14: 1.391384664 | P14: 1.391384664 | Q14: 1.391384664 | R14: 1.391384664 | S14: 1.391384664 | T14: 1.391384664 | U14: =IF(VLEESKUIKENS!$H$15="ja",L14-((E14-G14*95%-I14)/E14*L14)*$R$6,L14-((E14-G14*80%-I14)/E14*L14)*$R$6) -> 1.391384664 | V14: 1.391384664 | W14: 1.391384664 | X14: 1 | AB14: emissie/dpl/jr (gram) | AC14: =AC13*AC12 -> 6.078969555 | AD14: =AD13*AD12 -> 6.130915685 | AE14: =AE13*AE12 -> 6.078969555 | AF14: =AF13*AF12 -> 6.130915685
A15: 6 | B15: 140 | C15: 0.2288737718 | D15: 26 | E15: 0.2350171144 | F15: 0.2350171144 | G15: 0 | H15: 0 | I15: 0 | J15: 0.8497982136 | K15: 0.989 | L15: 1.677338569 | M15: 1.677338569 | N15: 1.677338569 | O15: 1.677338569 | P15: 1.677338569 | Q15: 1.677338569 | R15: 1.677338569 | S15: 1.677338569 | T15: 1.677338569 | U15: =IF(VLEESKUIKENS!$H$15="ja",L15-((E15-G15*95%-I15)/E15*L15)*$R$6,L15-((E15-G15*80%-I15)/E15*L15)*$R$6) -> 1.677338569 | V15: 1.677338569 | W15: 1.677338569 | X15: 1 | AB15: vervolghuisvesting
A16: 7 | B16: 163 | C16: 0.2565315016 | D16: 28 | E16: 0.2573554849 | F16: 0.2573554849 | G16: 0 | H16: 0 | I16: 0 | J16: 0.9203238852 | K16: 0.988 | L16: 1.991999885 | M16: 1.991999885 | N16: 1.991999885 | O16: 1.991999885 | P16: 1.991999885 | Q16: 1.991999885 | R16: 1.991999885 | S16: 1.991999885 | T16: 1.991999885 | U16: =IF(VLEESKUIKENS!$H$15="ja",L16-((E16-G16*95%-I16)/E16*L16)*$R$6,L16-((E16-G16*80%-I16)/E16*L16)*$R$6) -> 1.991999885 | V16: 1.991999885 | W16: 1.991999885 | X16: 1 | AB16: # dagen
A17: 8 | B17: 188 | C17: 0.2855080691 | D17: 31 | E17: 0.2818171168 | F17: 0.2818171168 | G17: 0 | H17: 0 | I17: 0 | J17: 0.9861299031 | K17: =K16-0.000857 -> 0.987143 | L17: 2.339815102 | M17: 2.339815102 | N17: 2.339815102 | O17: 2.339815102 | P17: 2.339815102 | Q17: 2.339815102 | R17: 2.339815102 | S17: 2.339815102 | T17: 2.339815102 | U17: =IF(VLEESKUIKENS!$H$15="ja",L17-((E17-G17*95%-I17)/E17*L17)*$R$6,L17-((E17-G17*80%-I17)/E17*L17)*$R$6) -> 2.339815102 | V17: 2.339815102 | W17: 2.339815102 | X17: 1 | AB17: Groeiperiode | AC17: 42 | AD17: 42 | AE17: 42 | AF17: 42
A18: 9 | B18: 223 | C18: 0.3245104206 | D18: 35 | E18: 0.3086038263 | F18: 0.3086038263 | G18: 0 | H18: 0 | I18: 0 | J18: 1.048069814 | K18: 0.986286 | L18: 2.725140156 | M18: 2.725140156 | N18: 2.725140156 | O18: 2.725140156 | P18: 2.725140156 | Q18: 2.725140156 | R18: 2.725140156 | S18: 2.725140156 | T18: 2.725140156 | U18: =IF(VLEESKUIKENS!$H$15="ja",L18-((E18-G18*95%-I18)/E18*L18)*$R$6,L18-((E18-G18*80%-I18)/E18*L18)*$R$6) -> 2.725140156 | V18: 2.725140156 | W18: 2.725140156 | X18: 1 | AB18: Patio | AC18: =+AC8 -> 13 | AD18: =+AD8 -> 19 | AE18: =+AE8 -> 13 | AF18: =+AF8 -> 19
A19: 10 | B19: 258 | C19: 0.3620051754 | D19: 41 | E19: 0.3379366118 | F19: 0.3379366118 | G19: 0 | H19: 0 | I19: 0 | J19: 1.106766454 | K19: 0.985429 | L19: 3.152800905 | M19: 3.152800905 | N19: 3.152800905 | O19: 3.152800905 | P19: 3.152800905 | Q19: 3.152800905 | R19: 3.152800905 | S19: 3.152800905 | T19: 3.152800905 | U19: =IF(VLEESKUIKENS!$H$15="ja",L19-((E19-G19*95%-I19)/E19*L19)*$R$6,L19-((E19-G19*80%-I19)/E19*L19)*$R$6) -> 3.152800905 | V19: 3.152800905 | W19: 3.152800905 | X19: 1 | AA19: 42 | AB19: VVH | AC19: =AC17-AC18 -> 29 | AD19: 23 | AE19: =AE17-AE18 -> 29 | AF19: =AF17-AF18 -> 23
A20: 11 | B20: 294 | C20: 0.3992643166 | D20: 44 | E20: 0.3700574777 | F20: 0.3700574777 | G20: 0 | H20: 0 | I20: 0 | J20: 1.162690928 | K20: 0.984572 | L20: 3.62796564 | M20: 3.62796564 | N20: 3.62796564 | O20: 3.62796564 | P20: 3.62796564 | Q20: 3.62796564 | R20: 3.62796564 | S20: 3.62796564 | T20: 3.62796564 | U20: =IF(VLEESKUIKENS!$H$15="ja",L20-((E20-G20*95%-I20)/E20*L20)*$R$6,L20-((E20-G20*80%-I20)/E20*L20)*$R$6) -> 3.62796564 | V20: 3.62796564 | W20: 3.62796564 | X20: 1 | AA20: 0 | AB20: Leegstand na vvh | AC20: 10 | AD20: 10 | AE20: 10 | AF20: 10
A21: 12 | B21: 333 | C21: 0.438362278 | D21: 50 | E21: 0.4052314311 | F21: 0.4052314311 | G21: 0 | H21: 0 | I21: 0 | J21: 1.216209881 | K21: 0.983715 | L21: 4.156234803 | M21: 4.156234803 | N21: 4.156234803 | O21: 4.156234803 | P21: 4.156234803 | Q21: 4.156234803 | R21: 4.156234803 | S21: 4.156234803 | T21: 4.156234803 | U21: =IF(VLEESKUIKENS!$H$15="ja",L21-((E21-G21*95%-I21)/E21*L21)*$R$6,L21-((E21-G21*80%-I21)/E21*L21)*$R$6) -> 4.156234803 | V21: 4.156234803 | W21: 4.156234803 | X21: 1 | AA21: 42 | AB21: # ronden | AC21: =365/(AC19+AC20) -> 9.358974359 | AD21: =365/(AD19+AD20) -> 11.06060606 | AE21: =365/(AE19+AE20) -> 9.358974359 | AF21: =365/(AF19+AF20) -> 11.06060606
A22: 13 | B22: 375 | C22: 0.4792073282 | D22: 56 | E22: 0.4437486678 | F22: 0.4437486678 | G22: 0 | H22: 0 | I22: 0 | J22: 1.267615348 | K22: 0.982858 | L22: 4.743719685 | M22: 4.743719685 | N22: 4.743719685 | O22: 4.743719685 | P22: 4.743719685 | Q22: 4.743719685 | R22: 4.743719685 | S22: 4.743719685 | T22: 4.743719685 | U22: =IF(VLEESKUIKENS!$H$15="ja",L22-((E22-G22*95%-I22)/E22*L22)*$R$6,L22-((E22-G22*80%-I22)/E22*L22)*$R$6) -> 4.743719685 | V22: 4.743719685 | W22: 4.743719685 | X22: 1 | AA22: 10 | AB22: emissie/ronde (gram) | AC22: =AVERAGE(L23:L51)/$AA$23 -> 5.580406885 | AD22: =AVERAGE(L29:L51)/$AA$23 -> 6.757120694 | AE22: =AVERAGE(N23:N51)/$AA$23 -> 5.580406885 | AF22: =AVERAGE(N29:N51)/$AA$23 -> 6.757120694
A23: 14 | B23: 420 | C23: 0.521719378 | D23: 62 | E23: 0.4859269669 | F23: 0.4859269669 | G23: 0 | H23: 0 | I23: 0 | J23: 1.317144453 | K23: 0.982001 | L23: 5.397117475 | M23: 5.397117475 | N23: 5.397117475 | O23: 5.397117475 | P23: 5.397117475 | Q23: 5.397117475 | R23: 5.397117475 | S23: 5.397117475 | T23: 5.397117475 | U23: =IF(VLEESKUIKENS!$H$15="ja",L23-((E23-G23*95%-I23)/E23*L23)*$R$6,L23-((E23-G23*80%-I23)/E23*L23)*$R$6) -> 5.397117475 | V23: 5.397117475 | W23: 5.397117475 | X23: 1 | AA23: =365/(AA21+AA22) -> 7.019230769 | AB23: emissie/dpl/jr (gram) | AC23: =AC22*AC21 -> 52.22688495 | AD23: =AD22*AD21 -> 74.7378501 | AE23: =AE22*AE21 -> 52.22688495 | AF23: =AF22*AF21 -> 74.7378501
A24: 15 | B24: 467 | C24: 0.5649209235 | D24: 67 | E24: 0.5321143121 | F24: 0.5321143121 | G24: 0 | H24: 0 | I24: 0 | J24: 1.364992881 | K24: 0.981144 | L24: 6.123786862 | M24: 6.123786862 | N24: 6.123786862 | O24: 6.123786862 | P24: 6.123786862 | Q24: 6.123786862 | R24: 6.123786862 | S24: 6.123786862 | T24: 6.123786862 | U24: =IF(VLEESKUIKENS!$H$15="ja",L24-((E24-G24*95%-I24)/E24*L24)*$R$6,L24-((E24-G24*80%-I24)/E24*L24)*$R$6) -> 6.123786862 | V24: 6.123786862 | W24: 6.123786862 | X24: 1 | AA24: =AA22/(AA21+AA22) -> 0.1923076923 | AB24: samen (gr/dpl/jr) | AC24: =(AC14+(AC23*2))/3 -> 36.84424649 | AD24: =(AD14+AD23)/2 -> 40.43438289 | AE24: =(AE14+(AE23*2))/3 -> 36.84424649 | AF24: =(AF14+AF23)/2 -> 40.43438289
A25: 16 | B25: 517 | C25: 0.6097024039 | D25: 73 | E25: 0.5826917633 | F25: 0.5826917633 | G25: 0 | H25: 0 | I25: 0 | J25: 1.411324375 | K25: 0.980287 | L25: 6.931826823 | M25: 6.931826823 | N25: 6.931826823 | O25: 6.931826823 | P25: 6.931826823 | Q25: 6.931826823 | R25: 6.931826823 | S25: 6.931826823 | T25: 6.931826823 | U25: =IF(VLEESKUIKENS!$H$15="ja",L25-((E25-G25*95%-I25)/E25*L25)*$R$6,L25-((E25-G25*80%-I25)/E25*L25)*$R$6) -> 6.931826823 | V25: 6.931826823 | W25: 6.931826823 | X25: 1 | AB25: verschil t.o.v. trad. | AC25: =(AC24/$L$56) -> 1.640132426 | AD25: =(AD24/$L$56) -> 1.7999484
A26: 17 | B26: 570 | C26: 0.6560034777 | D26: 80 | E26: 0.6380765999 | F26: 0.6380765999 | G26: 0 | H26: 0 | I26: 0 | J26: 1.4562776 | K26: 0.97943 | L26: 7.830160489 | M26: 7.830160489 | N26: 7.830160489 | O26: 7.830160489 | P26: 7.830160489 | Q26: 7.830160489 | R26: 7.830160489 | S26: 7.830160489 | T26: 7.830160489 | U26: =IF(VLEESKUIKENS!$H$15="ja",L26-((E26-G26*95%-I26)/E26*L26)*$R$6,L26-((E26-G26*80%-I26)/E26*L26)*$R$6) -> 7.830160489 | V26: 7.830160489 | W26: 7.830160489 | X26: 1 | AB26: reductie | AE26: =(AC24-AE24)/AC24 -> 0 | AF26: =(AD24-AF24)/AD24 -> 0
A27: 18 | B27: 625 | C27: 0.7029266565 | D27: 83 | E27: 0.6987257637 | F27: 0.6987257637 | G27: 0 | H27: 0 | I27: 0 | J27: 1.499971222 | K27: 0.978573 | L27: 8.828625529 | M27: 8.828625529 | N27: 8.828625529 | O27: 8.828625529 | P27: 8.828625529 | Q27: 8.828625529 | R27: 8.828625529 | S27: 8.828625529 | T27: 8.828625529 | U27: =IF(VLEESKUIKENS!$H$15="ja",L27-((E27-G27*95%-I27)/E27*L27)*$R$6,L27-((E27-G27*80%-I27)/E27*L27)*$R$6) -> 8.828625529 | V27: 8.828625529 | W27: 8.828625529 | X27: 1
A28: 19 | B28: 682 | C28: 0.7504785451 | D28: 89 | E28: 0.765139629 | F28: 0.765139629 | G28: 0 | H28: 0 | I28: 0 | J28: 1.542507732 | K28: 0.977716 | L28: 9.938072331 | M28: 9.938072331 | N28: 9.938072331 | O28: 9.938072331 | P28: 9.938072331 | Q28: 9.938072331 | R28: 9.938072331 | S28: 9.938072331 | T28: 9.938072331 | U28: =IF(VLEESKUIKENS!$H$15="ja",L28-((E28-G28*95%-I28)/E28*L28)*$R$6,L28-((E28-G28*80%-I28)/E28*L28)*$R$6) -> 9.938072331 | V28: 9.938072331 | W28: 9.938072331 | X28: 1
A29: 20 | B29: 741 | C29: 0.798663167 | D29: 95 | E29: 0.8378661303 | F29: 0.8378661303 | G29: 0 | H29: 0 | I29: 0 | J29: 1.583976379 | K29: 0.976859 | L29: 11.17047117 | M29: 11.17047117 | N29: 11.17047117 | O29: 11.17047117 | P29: 11.17047117 | Q29: 11.17047117 | R29: 11.17047117 | S29: 11.17047117 | T29: 11.17047117 | U29: =IF(VLEESKUIKENS!$H$15="ja",L29-((E29-G29*95%-I29)/E29*L29)*$R$6,L29-((E29-G29*80%-I29)/E29*L29)*$R$6) -> 11.17047117 | V29: 11.17047117 | W29: 11.17047117 | X29: 1
A30: 21 | B30: 804 | C30: 0.8490671461 | D30: 100 | E30: 0.9175052837 | F30: 0.9175052837 | G30: 0 | H30: 0 | I30: 0 | J30: 1.624455453 | K30: 0.976002 | L30: 12.53902953 | M30: 12.53902953 | N30: 12.53902953 | O30: 12.53902953 | P30: 12.53902953 | Q30: 12.53902953 | R30: 12.53902953 | S30: 12.53902953 | T30: 12.53902953 | U30: =IF(VLEESKUIKENS!$H$15="ja",L30-((E30-G30*95%-I30)/E30*L30)*$R$6,L30-((E30-G30*80%-I30)/E30*L30)*$R$6) -> 12.53902953 | V30: 12.53902953 | W30: 12.53902953 | X30: 1
A31: 22 | B31: 867 | C31: 0.8984922245 | D31: 105 | E31: 1.004714136 | F31: 1.004714136 | G31: 0 | H31: 0 | I31: 0 | J31: 1.664014083 | K31: 0.975145 | L31: 14.05832078 | M31: 14.05832078 | N31: 14.05832078 | O31: 14.05832078 | P31: 14.05832078 | Q31: 14.05832078 | R31: 14.05832078 | S31: 14.05832078 | T31: 14.05832078 | U31: =IF(VLEESKUIKENS!$H$15="ja",L31-((E31-G31*95%-I31)/E31*L31)*$R$6,L31-((E31-G31*80%-I31)/E31*L31)*$R$6) -> 14.05832078 | V31: 14.05832078 | W31: 14.05832078 | X31: 1
A32: 23 | B32: 934 | C32: 0.950079959 | D32: 110 | E32: 1.100212188 | F32: 1.100212188 | G32: 0 | H32: 0 | I32: 0 | J32: 1.702713675 | K32: 0.974288 | L32: 15.74442548 | M32: 15.74442548 | N32: 15.74442548 | O32: 15.74442548 | P32: 15.74442548 | Q32: 15.74442548 | R32: 15.74442548 | S32: 15.74442548 | T32: 15.74442548 | U32: =IF(VLEESKUIKENS!$H$15="ja",L32-((E32-G32*95%-I32)/E32*L32)*$R$6,L32-((E32-G32*80%-I32)/E32*L32)*$R$6) -> 15.74442548 | V32: 15.74442548 | W32: 15.74442548 | X32: 1
A33: 24 | B33: 1002 | C33: 1.001499625 | D33: 115 | E33: 1.204787328 | F33: 1.204787328 | G33: 0 | H33: 0 | I33: 0 | J33: 1.740609066 | K33: 0.973431 | L33: 17.61508672 | M33: 17.61508672 | N33: 17.61508672 | O33: 17.61508672 | P33: 17.61508672 | Q33: 17.61508672 | R33: 17.61508672 | S33: 17.61508672 | T33: 17.61508672 | U33: =IF(VLEESKUIKENS!$H$15="ja",L33-((E33-G33*95%-I33)/E33*L33)*$R$6,L33-((E33-G33*80%-I33)/E33*L33)*$R$6) -> 17.61508672 | V33: 17.61508672 | W33: 17.61508672 | X33: 1
A34: 25 | B34: 1071 | C34: 1.052790853 | D34: 120 | E34: 1.319302331 | F34: 1.319302331 | G34: 0 | H34: 0 | I34: 0 | J34: 1.777749477 | K34: 0.972574 | L34: 19.68988084 | M34: 19.68988084 | N34: 19.68988084 | O34: 19.68988084 | P34: 19.68988084 | Q34: 19.68988084 | R34: 19.68988084 | S34: 19.68988084 | T34: 19.68988084 | U34: =IF(VLEESKUIKENS!$H$15="ja",L34-((E34-G34*95%-I34)/E34*L34)*$R$6,L34-((E34-G34*80%-I34)/E34*L34)*$R$6) -> 19.68988084 | V34: =L34-((E34-G34-I34)/E34*L34)*$R$6 -> 19.68988084 | W34: 19.68988084 | X34: 1
A35: 26 | B35: 1143 | C35: 1.105438721 | D35: 125 | E35: 1.444701982 | F35: 1.444701982 | G35: 0 | H35: =IF(E35<$R$5,E35-G35,$R$5) -> 0 | I35: 0 | J35: 1.814179281 | K35: 0.971717 | L35: 21.99040531 | M35: 21.99040531 | N35: 21.99040531 | O35: 21.99040531 | P35: 21.99040531 | Q35: 21.99040531 | R35: 21.99040531 | S35: 21.99040531 | T35: 21.99040531 | U35: =IF(VLEESKUIKENS!$H$15="ja",L35-((E35-G35*95%-I35)/E35*L35)*$R$6,L35-((E35-G35*80%-I35)/E35*L35)*$R$6) -> 21.99040531 | V35: =L35-((E35-G35-I35)/E35*L35)*$R$6 -> 21.99040531 | W35: 21.99040531 | X35: 1
A36: 27 | B36: 1215 | C36: 1.157263374 | D36: 128 | E36: 1.582020867 | F36: 1.582020867 | G36: =IF($R$4>0<E36,E36,IF($R$4>E36,E36,$R$4)) -> 0 | H36: =IF(E36<$R$5,E36-G36,$R$5) -> 0 | I36: 0 | J36: 1.84993865 | K36: 0.97086 | L36: 24.54048538 | M36: 24.54048538 | N36: 24.54048538 | O36: 24.54048538 | P36: 24.54048538 | Q36: 24.54048538 | R36: 24.54048538 | S36: 24.54048538 | T36: 24.54048538 | U36: =IF(VLEESKUIKENS!$H$15="ja",L36-((E36-G36*95%-I36)/E36*L36)*$R$6,L36-((E36-G36*80%-I36)/E36*L36)*$R$6) -> 24.54048538 | V36: 24.54048538 | W36: 24.54048538 | X36: 1
A37: 28 | B37: 1290 | C37: 1.210437257 | D37: 133 | E37: 1.732391909 | F37: 1.732391909 | G37: =IF($R$4>0<E37,E37,IF($R$4>E37,E37,$R$4)) -> 0 | H37: 0 | I37: 0 | J37: 1.885064093 | K37: 0.970003 | L37: 27.36640141 | M37: 27.36640141 | N37: 27.36640141 | O37: 27.36640141 | P37: 27.36640141 | Q37: 27.36640141 | R37: 27.36640141 | S37: 27.36640141 | T37: 27.36640141 | U37: =IF(VLEESKUIKENS!$H$15="ja",L37-((E37-G37*95%-I37)/E37*L37)*$R$6,L37-((E37-G37*80%-I37)/E37*L37)*$R$6) -> 27.36640141 | V37: 27.36640141 | W37: 27.36640141 | X37: 1
A38: 29 | B38: 1366 | C38: 1.263537177 | D38: 137 | E38: 1.897055713 | F38: 1.897055713 | G38: 0 | H38: 0 | I38: 0 | J38: 1.919588907 | K38: 0.969146 | L38: 30.49713907 | M38: 30.49713907 | N38: =(((($J38*(1-$R$2))-$J$3)/1000*$F38*24*365*$K38)*(1-R$4))+(((($J38*(1-$R$2))-$J$3)/1000*$G38*24*365*$K38)*(1-R$3)) -> 30.49713907 | O38: 30.49713907 | P38: 30.49713907 | Q38: 30.49713907 | R38: 30.49713907 | S38: 30.49713907 | T38: 30.49713907 | U38: =IF(VLEESKUIKENS!$H$15="ja",L38-((E38-G38*95%-I38)/E38*L38)*$R$6,L38-((E38-G38*80%-I38)/E38*L38)*$R$6) -> 30.49713907 | V38: 30.49713907 | W38: 30.49713907 | X38: 1
A39: 30 | B39: 1443 | C39: 1.316587563 | D39: 141 | E39: 2.077370808 | F39: 2.077370808 | G39: 0 | H39: 0 | I39: 0 | J39: 1.953543562 | K39: 0.968289 | L39: 33.96466464 | M39: 33.96466464 | N39: =(((($J39*(1-$R$2))-$J$3)/1000*$F39*24*365*$K39)*(1-R$4))+(((($J39*(1-$R$2))-$J$3)/1000*$G39*24*365*$K39)*(1-R$3)) -> 33.96466464 | O39: 33.96466464 | P39: 33.96466464 | Q39: 33.96466464 | R39: 33.96466464 | S39: 33.96466464 | T39: 33.96466464 | U39: =IF(VLEESKUIKENS!$H$15="ja",L39-((E39-G39*95%-I39)/E39*L39)*$R$6,L39-((E39-G39*80%-I39)/E39*L39)*$R$6) -> 33.96466464 | V39: 33.96466464 | W39: 33.96466464 | X39: 1
A40: 31 | B40: 1521 | C40: 1.369609976 | D40: 145 | E40: 2.274824848 | F40: 2.274824848 | G40: 0 | H40: 0 | I40: 0 | J40: 1.986956024 | K40: 0.967432 | L40: 37.80422789 | M40: 37.80422789 | N40: =(((($J40*(1-$R$2))-$J$3)/1000*$F40*24*365*$K40)*(1-R$4))+(((($J40*(1-$R$2))-$J$3)/1000*$G40*24*365*$K40)*(1-R$3)) -> 37.80422789 | O40: 37.80422789 | P40: 37.80422789 | Q40: 37.80422789 | R40: 37.80422789 | S40: 37.80422789 | T40: 37.80422789 | U40: =IF(VLEESKUIKENS!$H$15="ja",L40-((E40-G40*95%-I40)/E40*L40)*$R$6,L40-((E40-G40*80%-I40)/E40*L40)*$R$6) -> 37.80422789 | V40: 37.80422789 | W40: 37.80422789 | X40: 1
A41: 32 | B41: 1600 | C41: 1.422623528 | D41: 150 | E41: 2.49104689 | F41: 2.49104689 | G41: 0 | H41: 0 | I41: 0 | J41: 2.019852034 | K41: 0.966575 | L41: 42.05469546 | M41: 42.05469546 | N41: =(((($J41*(1-$R$2))-$J$3)/1000*$F41*24*365*$K41)*(1-R$5))+(((($J41*(1-$R$2))-$J$3)/1000*$G41*24*365*$K41)*(1-R$3)) -> 42.05469546 | O41: 42.05469546 | P41: 42.05469546 | Q41: 42.05469546 | R41: 42.05469546 | S41: 42.05469546 | T41: 42.05469546 | U41: =IF(VLEESKUIKENS!$H$15="ja",L41-((E41-G41*95%-I41)/E41*L41)*$R$6,L41-((E41-G41*80%-I41)/E41*L41)*$R$6) -> 42.05469546 | V41: 42.05469546 | W41: 42.05469546 | X41: 1
A42: 33 | B42: 1680 | C42: 1.47564524 | D42: 155 | E42: 2.72782083 | F42: 2.72782083 | G42: 0 | H42: 0 | I42: =MIN(R$5,E42-G42) -> 0 | J42: 2.052255352 | K42: 0.965718 | L42: 46.75891754 | M42: 46.75891754 | N42: 46.75891754 | O42: 46.75891754 | P42: 46.75891754 | Q42: 46.75891754 | R42: 46.75891754 | S42: 46.75891754 | T42: 46.75891754 | U42: =IF(VLEESKUIKENS!$H$15="ja",L42-((E42-G42*95%-I42)/E42*L42)*$R$6,L42-((E42-G42*80%-I42)/E42*L42)*$R$6) -> 46.75891754 | V42: 46.75891754 | W42: 46.75891754 | X42: 1
A43: 34 | B43: 1762 | C43: 1.529341339 | D43: 160 | E43: 2.987100127 | F43: 2.987100127 | G43: 0 | H43: 0 | I43: 0 | J43: 2.084187961 | K43: 0.964861 | L43: 51.96413144 | M43: 51.96413144 | N43: 51.96413144 | O43: 51.96413144 | P43: 51.96413144 | Q43: 51.96413144 | R43: 51.96413144 | S43: 51.96413144 | T43: 51.96413144 | U43: =IF(VLEESKUIKENS!$H$15="ja",L43-((E43-G43*95%-I43)/E43*L43)*$R$6,L43-((E43-G43*80%-I43)/E43*L43)*$R$6) -> 51.96413144 | V43: 51.96413144 | W43: 51.96413144 | X43: 1
A44: 35 | B44: 1844 | C44: 1.58241608 | D44: 165 | E44: =MIN('Max waarden'!$B$10,3.2710239149052) -> 3.271023915 | F44: 3.271023915 | G44: 0 | H44: 0 | I44: 0 | J44: 2.115670252 | K44: 0.964004 | L44: 57.72240555 | M44: 57.72240555 | N44: 57.72240555 | O44: 57.72240555 | P44: 57.72240555 | Q44: 57.72240555 | R44: 57.72240555 | S44: 57.72240555 | T44: 57.72240555 | U44: =IF(VLEESKUIKENS!$H$15="ja",L44-((E44-G44*95%-I44)/E44*L44)*$R$6,L44-((E44-G44*80%-I44)/E44*L44)*$R$6) -> 57.72240555 | V44: 57.72240555 | W44: 57.72240555 | X44: 1
A45: 36 | B45: 1927 | C45: 1.635540437 | D45: 170 | E45: =MIN('Max waarden'!$B$10,3.58193465088123) -> 3.581934651 | F45: 3.581934651 | G45: 0 | H45: 0 | I45: 0 | J45: 2.146721177 | K45: 0.963147 | L45: 64.0911278 | M45: 64.0911278 | N45: 64.0911278 | O45: 64.0911278 | P45: 64.0911278 | Q45: 64.0911278 | R45: 64.0911278 | S45: 64.0911278 | T45: 64.0911278 | U45: =IF(VLEESKUIKENS!$H$15="ja",L45-((E45-G45*95%-I45)/E45*L45)*$R$6,L45-((E45-G45*80%-I45)/E45*L45)*$R$6) -> 64.0911278 | V45: 64.0911278 | W45: 64.0911278 | X45: 1
A46: 37 | B46: 2009 | C46: 1.687465695 | D46: 175 | E46: =MIN('Max waarden'!$B$10,3.92239744402953) -> 3.922397444 | F46: 3.922397444 | G46: 0 | H46: 0 | I46: 0 | J46: 2.177358388 | K46: 0.96229 | L46: 71.13354297 | M46: 71.13354297 | N46: 71.13354297 | O46: 71.13354297 | P46: 71.13354297 | Q46: 71.13354297 | R46: 71.13354297 | S46: 71.13354297 | T46: 71.13354297 | U46: =IF(VLEESKUIKENS!$H$15="ja",L46-((E46-G46*95%-I46)/E46*L46)*$R$6,L46-((E46-G46*80%-I46)/E46*L46)*$R$6) -> 71.13354297 | V46: 71.13354297 | W46: 71.13354297 | X46: 1
A47: 38 | B47: 2092 | C47: 1.739487291 | D47: 179 | E47: =MIN('Max waarden'!$B$10,4.2952212165971) -> 4.295221217 | F47: 4.295221217 | G47: 0 | H47: 0 | I47: 0 | J47: 2.207598363 | K47: 0.961433 | L47: 78.91934389 | M47: 78.91934389 | N47: 78.91934389 | O47: 78.91934389 | P47: 78.91934389 | Q47: 78.91934389 | R47: 78.91934389 | S47: 78.91934389 | T47: 78.91934389 | U47: =IF(VLEESKUIKENS!$H$15="ja",L47-((E47-G47*95%-I47)/E47*L47)*$R$6,L47-((E47-G47*80%-I47)/E47*L47)*$R$6) -> 78.91934389 | V47: 78.91934389 | W47: 78.91934389 | X47: 1
A48: 39 | B48: 2176 | C48: 1.791612848 | D48: 184 | E48: =MIN('Max waarden'!$B$10,4.70348187881569) -> 4.703481879 | F48: 4.703481879 | G48: 0 | H48: 0 | I48: 0 | J48: 2.237456506 | K48: 0.960576 | L48: 87.52532161 | M48: 87.52532161 | N48: 87.52532161 | O48: 87.52532161 | P48: 87.52532161 | Q48: 87.52532161 | R48: 87.52532161 | S48: =IF(E48-G48-H48>=0,L48-((E48-G48-H48)/E48*L48)*$R$6,IF(G48>H48,L48-((E48-G48)/E48*L48)*$R$6,L48-((E48-H48)/E48*L48)*$R$6)) -> 87.52532161 | T48: 87.52532161 | U48: =IF(VLEESKUIKENS!$H$15="ja",L48-((E48-G48*95%-I48)/E48*L48)*$R$6,L48-((E48-G48*80%-I48)/E48*L48)*$R$6) -> 87.52532161 | V48: 87.52532161 | W48: 87.52532161 | X48: 1
A49: 40 | B49: 2259 | C49: 1.842625908 | D49: 189 | E49: =MIN('Max waarden'!$B$10,5.15054770610263) -> 5.150547706 | F49: 5.150547706 | G49: 0 | H49: 0 | I49: 0 | J49: 2.26694725 | K49: 0.959719 | L49: 97.03608068 | M49: 97.03608068 | N49: 97.03608068 | O49: 97.03608068 | P49: 97.03608068 | Q49: 97.03608068 | R49: 97.03608068 | S49: 97.03608068 | T49: 97.03608068 | U49: =IF(VLEESKUIKENS!$H$15="ja",L49-((E49-G49*95%-I49)/E49*L49)*$R$6,L49-((E49-G49*80%-I49)/E49*L49)*$R$6) -> 97.03608068 | V49: 97.03608068 | W49: 97.03608068 | X49: 1
A50: 41 | B50: 2342 | C50: 1.893172416 | D50: 189 | E50: =MIN('Max waarden'!$B$10,5.64010712836396) -> 5.640107128 | F50: 5.640107128 | G50: 0 | H50: 0 | I50: 0 | J50: 2.296084135 | K50: 0.958862 | L50: =($J50-$J$3)/1000*$E50*24*365*$K50 -> 107.5448258 | M50: 107.5448258 | N50: 107.5448258 | O50: 107.5448258 | P50: 107.5448258 | Q50: 107.5448258 | R50: 107.5448258 | S50: 107.5448258 | T50: 107.5448258 | U50: =IF(VLEESKUIKENS!$H$15="ja",L50-((E50-G50*95%-I50)/E50*L50)*$R$6,L50-((E50-G50*80%-I50)/E50*L50)*$R$6) -> 107.5448258 | V50: 107.5448258 | W50: 107.5448258 | X50: 1
A51: 42 | B51: 2425 | C51: 1.943272958 | D51: 190 | E51: =MIN('Max waarden'!$B$10,6.17619916067003) -> 6.176199161 | F51: 6.176199161 | G51: 0 | H51: 0 | I51: =MIN(R$5,E51-G51) -> 0 | J51: 2.324879886 | K51: 0.958005 | L51: =($J51-$J$3)/1000*$E51*24*365*$K51 -> 119.1542272 | M51: 119.1542272 | N51: 119.1542272 | O51: 119.1542272 | P51: =IF(I51=0,L51,IF(I51>$R$5,L51-(R$5)/E51*L51*99%,L51-(I51)/E51*L51*99%)) -> 119.1542272 | Q51: 119.1542272 | R51: =IF(E51-G51-H51>=0,L51-((E51-G51*80%-H51*95%)/E51*L51)*$R$6,IF(G51>H51,L51-((E51-G51)/E51*L51)*$R$6,L51-((E51-H51)/E51*L51)*$R$6)) -> 119.1542272 | S51: 119.1542272 | T51: 119.1542272 | U51: =IF(VLEESKUIKENS!$H$15="ja",L51-((E51-G51*95%-I51)/E51*L51)*$R$6,L51-((E51-G51*80%-I51)/E51*L51)*$R$6) -> 119.1542272 | V51: 119.1542272 | W51: 119.1542272 | X51: 1
Q52: =I50/(E50-G50)*(L50-(L50-O50)/80%)*5% -> 0
B53: =AVERAGE(B9:B51) -> 958.6511628 | E53: =AVERAGE(E10:E51) -> 1.656770439 | P53: =IF(R$5<E5,R$5/E47*(L47-(L47-O47)/80%)*95%,E$5/E47*(L47-(L47-O47)/80%)*95%) -> 0 | Q53: =L51-I51/(E51)*(L51-(L51-O51)/80%)*95% -> 119.1542272 | R53: =(L45-(L45-O45)/80%) -> 64.0911278 | S53: =5%*R53 -> 3.20455639
D54: totaal reductie debiet | F54: 0 | P54: =L51-R$5/E51*L51*95% -> 119.1542272 | Q54: =E49/(E49-G49)*(L49-(L49-O49)/80%)*(1-95%) -> 4.851804034 | R54: =I51/(E51-G51) -> 0
E55: =SUM(E10:E51) -> 69.58435843 | F55: =SUM(F10:F51) -> 69.58435843 | G55: =SUM(G10:G51) -> 0 | K55: gem (- leeg) | L55: =AVERAGE(L10:L51) -> 27.73356793 | M55: =AVERAGE(M10:M51) -> 27.73356793 | N55: 27.73356793 | O55: =AVERAGE(O10:O52) -> 27.73356793 | P55: =AVERAGE(P10:P52) -> 27.73356793 | Q55: =AVERAGE(Q10:Q51) -> 27.73356793 | R55: =AVERAGE(R10:R51) -> 27.73356793 | S55: 27.73356793 | T55: 27.73356793 | U55: 27.73356793 | V55: 27.73356793 | W55: 27.73356793
F56: =F55/$E$55 -> 1 | G56: =G55/$E$55 -> 0 | K56: gem (+ leeg) | L56: =L55*0.81 -> 22.46419002 | M56: =M55*0.81 -> 22.46419002 | N56: 22.46419002 | O56: =O55*0.81 -> 22.46419002 | P56: 22.46419002 | Q56: 22.46419002 | R56: =R55*0.81 -> 22.46419002 | S56: 22.46419002 | T56: 22.46419002 | U56: 22.46419002 | V56: 22.46419002 | W56: 22.46419002
D57: TOTAAL DEBIET (hoofd en WW) | K57: reductie | L57: =1-(L56/$L$56) -> 0 | M57: 0 | N57: 0 | O57: =1-(O56/$L$56) -> 0 | P57: =1-(P56/($L$56)) -> 0 | Q57: 0 | R57: =1-(R56/$L$56) -> 0 | S57: =1-(S56/$L$56) -> 0 | T57: =1-(T56/$L$56) -> 0 | U57: 0 | V57: 0 | W57: =1-(W56/$L$56) -> 0
P58: =M57-P57 -> 0
O59: =O51+P51 -> 238.3084544 | P59: =(L51-I51/(E51-G51)*(L51-(L51-O51)/80%))*95% -> 113.1965159
P60: =(L51-I51/(E51-G51))*(1-95%) -> 5.957711361
P61: =(L51-I51/(E51-G51))*5% -> 5.957711361
P62: =(O51-(L51-O51)/80%) -> 119.1542272
P63: =I51/(E51-G51) -> 0
N64: =20%*O64 -> 0 | O64: =L51-O51 -> 0
N65: =O51-N64 -> 119.1542272 | O65: =O64/95% -> 0
N66: =95%*N65 -> 113.1965159 | O66: =L51-O65 -> 119.1542272
N67: =L51-P51 -> 0 | O67: =5%*O66 -> 5.957711361
O68: =5.95/L51 -> 0.04993528253
N69: =95%*P51 -> 113.1965159

Sheet Max waarden (hidden)
A1: Overzicht maximale waarden rekenmodel reducties fijnstof
B3: waarden in m3/dier/uur
A5: Maximale ventilatie:
A6: Opfok leghennen | B6: 1.73
A7: Leghennen | B7: 8.01
A8: Opfok vleeskuikenouderdieren | B8: 4.86
A9: Vleeskuikenouderdieren | B9: 15
A10: Vleeskuikens | B10: =IF(VLEESKUIKENS!$L$20="luchtconditioneringsunit",6.1762/2,6.17619916067003) -> 6.176199161 | C10: =VLEESKUIKENS!$L$20 -> GEEN TECHNIEK
A11: Vleeskalkoenen hennen | B11: 12.35
A12: Vleeskalkoenen hanen | B12: 24.84
A13: Vleeseenden | B13: 12.56
A16: Debiet door droogtunnel | C16: rekenwaarde | D16: in overzicht
A17: Opfok leghennen | B17: bandendroger (30%) | C17: 0.807 | D17: 0.85 | E17: Deze waarden staan (nog) niet genoemd in de beschrijvingen.
B18: platendroger (55%) | C18: 0.838 | D18: 0.85
A19: Leghennen | B19: bandendroger (30%) | C19: 1.835 | D19: 2
B20: platendroger (55%) | C20: 1.899 | D20: 2
A23: Debiet door warmtewisselaar
A24: ZONDER FILTERS
A25: Reductiepercentage op stalniveau: | B25: 0.13 | D25: 0.31 | F25: 0.37 | H25: 0.5
B26: rekenwaarde | C26: in overzicht | D26: rekenwaarde | E26: in overzicht | F26: rekenwaarde | G26: in overzicht | H26: rekenwaarde | I26: in overzicht
A27: Opfok leghennen | B27: 0.175 | C27: 0.2 | D27: 0.434 | E27: 0.4 | F27: 0.527 | G27: 0.55 | H27: 0.745 | I27: 0.8
A28: Leghennen | B28: 0.439 | C28: 0.4 | D28: 1.048 | E28: 1 | F28: 1.252 | G28: 1.25 | H28: 1.708 | I28: 1.8
A29: Opfok vleeskuikenouderdieren | B29: 0.42 | C29: 0.4 | D29: 1.047 | E29: 1 | F29: 1.279 | G29: 1.3 | H29: 1.84 | I29: 1.9
A30: Vleeskuikenouderdieren | B30: 0.595 | C30: 0.6 | D30: 1.485 | E30: 1.5 | F30: 1.845 | G30: 1.85 | H30: 2.845 | I30: 2.9
A31: Vleeskuikens | B31: 0.357 | C31: 0.35 | D31: 1.001 | E31: 1 | F31: 1.27 | G31: 1.3 | H31: 1.975 | I31: 2
A32: Vleeskalkoenen hennen | B32: 1.245 | C32: 1.1 | D32: 3.17 | E32: 3 | F32: 3.86 | G32: 3.85 | H32: 5.5 | I32: 5.6
A33: Vleeskalkoenen hanen | B33: 2.695 | C33: 2.5 | D33: 6.75 | E33: 6.2 | F33: 8.175 | G33: 8.2 | H33: 11.5 | I33: 11.7
A34: Vleeseenden | B34: 0.88 | C34: 0.8 | D34: 2.485 | E34: 2.3 | F34: 3.12 | G34: 3.15 | H34: 4.73 | I34: 4.8
A36: MET FILTERS
A37: Reductiepercentage op stalniveau: | B37: 0.13 | D37: 0.31 | F37: 0.37 | H37: 0.5
B38: rekenwaarde | C38: in overzicht | D38: rekenwaarde | E38: in overzicht | F38: rekenwaarde | G38: in overzicht | H38: rekenwaarde | I38: in overzicht
A39: Opfok leghennen | B39: 0.141 | C39: 0.15 | D39: 0.346 | E39: 0.35 | F39: 0.418 | G39: 0.4 | H39: 0.581 | I39: 0.6
A40: Leghennen | B40: 0.355 | C40: 0.35 | D40: 0.847 | E40: 0.85 | F40: 1.012 | G40: 1 | H40: 1.369 | I40: 1.4
A41: Opfok vleeskuikenouderdieren | B41: 0.337 | C41: 0.35 | D41: 0.831 | E41: 0.85 | F41: 1.008 | G41: 1.1 | H41: 1.417 | I41: 1.45
A42: Vleeskuikenouderdieren | B42: 0.48 | C42: 0.5 | D42: 1.161 | E42: 1.2 | F42: 1.422 | G42: 1.5 | H42: 2.075 | I42: 2.1
A43: Vleeskuikens | B43: 0.285 | C43: 0.3 | D43: 0.765 | E43: 0.75 | F43: 0.958 | G43: 1 | H43: 1.435 | I43: 1.45
A44: Vleeskalkoenen hennen | B44: 0.999 | C44: 0.9 | D44: 2.51 | E44: 2.5 | F44: 3.045 | G44: 3 | H44: 4.27 | I44: 4.3
A45: Vleeskalkoenen hanen | B45: 2.165 | C45: 2.2 | D45: 5.358 | E45: 5.3 | F45: 6.475 | G45: 6.2 | H45: 9.01 | I45: 9
A46: Vleeseenden | B46: 0.692 | C46: 0.7 | D46: 1.91 | E46: 1.9 | F46: 2.375 | G46: 2.3 | H46: 3.51 | I46: 3.6

Sheet Reductietechnieken (hidden)
B1: serie alles voetnoot 2 | E1: A | F1: B | G1: C | H1: D | I1: E | J1: F | K1: G | L1: H | M1: I | N1: J | O1: K | P1: L | Q1: M | R1: N | S1: O | T1: P | U1: Q | V1: R | W1: S | X1: T | Y1: U | Z1: V | AA1: W | AB1: X | AC1: Y
E2: =+D3 -> 0.65 | F2: =+D4 -> 0.4 | G2: =+D5 -> 0.25 | H2: =+D6 -> 0.2 | I2: =+D8 -> 0.45 | J2: =+D9 -> 0.7 | K2: =+D10 -> 0.46 | L2: =+D11 -> 0.51 | M2: =+D12 -> 0.67 | N2: =+D13 -> 0.6 | O2: =+D14 -> 0.43 | P2: =+D15 -> 0.69 | Q2: =+D16 -> 0.69 | R2: =+D17 -> 0.87 | S2: =+D18 -> 0.87 | T2: =+D19 -> 0.85 | U2: =+D20 -> 0.7 | V2: =+D21 -> 0.8 | W2: =+D22 -> 0.63 | X2: =+D23 -> 0.63 | Y2: =+D24 -> 0.5 | Z2: =+D25 -> 0.5
A3: A | B3: chemische wasser | C3: 0.35 | D3: =+(1-C3) -> 0.65 | E3: =1-($D$3*E2) -> 0.5775 | F3: =1-($D$3*F2) -> 0.74 | G3: 0.8375 | H3: 0.87 | I3: 0.7075 | J3: 0.545 | K3: 0.701 | L3: 0.6685 | M3: 0.5645 | N3: 0.61 | O3: 0.7205 | P3: 0.5515 | Q3: 0.5515 | R3: 0.4345 | S3: 0.4345 | T3: 0.4475 | U3: 0.545 | V3: 0.48 | W3: 0.5905 | X3: 0.5905 | Y3: 0.675 | Z3: 0.675
A4: B | B4: bio wasser 60% | C4: 0.6 | D4: =+(1-C4) -> 0.4 | E4: =1-+$D$4*E2 -> 0.74 | F4: =1-+$D$4*F2 -> 0.84 | G4: 0.9 | H4: 0.92 | I4: 0.82 | J4: 0.72 | K4: 0.816 | L4: 0.796 | M4: 0.732 | N4: 0.76 | O4: 0.828 | P4: 0.724 | Q4: 0.724 | R4: 0.652 | S4: 0.652 | T4: 0.66 | U4: 0.72 | V4: 0.68 | W4: 0.748 | X4: 0.748 | Y4: 0.8 | Z4: 0.8
A5: C | B5: bio wasser 75% | C5: 0.75 | D5: 0.25 | E5: =1-+$D$5*E2 -> 0.8375 | F5: =1-+$D$5*F2 -> 0.9 | G5: 0.9375 | H5: 0.95 | I5: 0.8875 | J5: 0.825 | K5: 0.885 | L5: 0.8725 | M5: 0.8325 | N5: 0.85 | O5: 0.8925 | P5: 0.8275 | Q5: 0.8275 | R5: 0.7825 | S5: 0.7825 | T5: 0.7875 | U5: 0.825 | V5: 0.8 | W5: 0.8425 | X5: 0.8425 | Y5: 0.875 | Z5: 0.875
A6: D | B6: biofilter | C6: 0.8 | D6: 0.2 | E6: =1-+$D$6*E2 -> 0.87 | F6: =1-+$D$6*F2 -> 0.92 | G6: 0.95 | H6: 0.96 | I6: 0.91 | J6: 0.86 | K6: 0.908 | L6: 0.898 | M6: 0.866 | N6: 0.88 | O6: 0.914 | P6: 0.862 | Q6: 0.862 | R6: 0.826 | S6: 0.826 | T6: 0.83 | U6: 0.86 | V6: 0.84 | W6: 0.874 | X6: 0.874 | Y6: 0.9 | Z6: 0.9
B7: GEEN DROOGTUNNEL
A8: E | B8: DROOGTUNNEL (PLATEN) 55% | C8: 0.55 | D8: 0.45 | E8: =1-+$D$8*E2 -> 0.7075 | F8: =1-+$D$8*F2 -> 0.82 | G8: 0.8875 | H8: 0.91 | I8: 0.7975 | J8: 0.685 | K8: 0.793 | L8: 0.7705 | M8: 0.6985 | N8: 0.73 | O8: 0.8065 | P8: 0.6895 | Q8: 0.6895 | R8: 0.6085 | S8: 0.6085 | T8: 0.6175 | U8: 0.685 | V8: 0.64 | W8: 0.7165 | X8: 0.7165 | Y8: 0.775 | Z8: 0.775
A9: F | B9: DROOGTUNNEL (BANDEN) 30% | C9: 0.3 | D9: 0.7 | E9: =1-+$D$9*E2 -> 0.545 | F9: =1-+$D$9*F2 -> 0.72 | G9: 0.825 | H9: 0.86 | I9: 0.685 | J9: 0.51 | K9: 0.678 | L9: 0.643 | M9: 0.531 | N9: 0.58 | O9: 0.699 | P9: 0.517 | Q9: 0.517 | R9: 0.391 | S9: 0.391 | T9: 0.405 | U9: 0.51 | V9: 0.44 | W9: 0.559 | X9: 0.559 | Y9: 0.65 | Z9: 0.65
A10: G | B10: OLIEFILM | C10: 0.54 | D10: 0.46 | E10: =1-+$D$10*E2 -> 0.701 | F10: =1-+$D$10*F2 -> 0.816 | G10: 0.885 | H10: 0.908 | I10: 0.793 | J10: 0.678 | K10: 0.7884 | L10: 0.7654 | M10: 0.6918 | N10: 0.724 | O10: 0.8022 | P10: 0.6826 | Q10: 0.6826 | R10: 0.5998 | S10: 0.5998 | T10: 0.609 | U10: 0.678 | V10: 0.632 | W10: 0.7102 | X10: 0.7102 | Y10: 0.77 | Z10: 0.77
A11: H | B11: negatieve ionisatie | C11: 0.49 | D11: 0.51 | E11: =1-+$D$11*E2 -> 0.6685 | F11: =1-+$D$11*F2 -> 0.796 | G11: 0.8725 | H11: 0.898 | I11: 0.7705 | J11: 0.643 | K11: 0.7654 | L11: 0.7399 | M11: 0.6583 | N11: 0.694 | O11: 0.7807 | P11: 0.6481 | Q11: 0.6481 | R11: 0.5563 | S11: 0.5563 | T11: 0.5665 | U11: 0.643 | V11: 0.592 | W11: 0.6787 | X11: 0.6787 | Y11: 0.745 | Z11: 0.745
A12: I | B12: water wasser | C12: 0.33 | D12: 0.67 | E12: =1-+$D$12*E2 -> 0.5645 | F12: =1-+$D$12*F2 -> 0.732 | G12: 0.8325 | H12: 0.866 | I12: 0.6985 | J12: 0.531 | K12: 0.6918 | L12: 0.6583 | M12: 0.5511 | N12: 0.598 | O12: 0.7119 | P12: 0.5377 | Q12: 0.5377 | R12: 0.4171 | S12: 0.4171 | T12: 0.4305 | U12: 0.531 | V12: 0.464 | W12: 0.5779 | X12: 0.5779 | Y12: 0.665 | Z12: 0.665
A13: J | B13: droogfilter | C13: 0.4 | D13: 0.6 | E13: =1-+$D$13*E2 -> 0.61 | F13: =1-+$D$13*F2 -> 0.76 | G13: 0.85 | H13: 0.88 | I13: 0.73 | J13: 0.58 | K13: 0.724 | L13: 0.694 | M13: 0.598 | N13: 0.64 | O13: 0.742 | P13: 0.586 | Q13: 0.586 | R13: 0.478 | S13: 0.478 | T13: 0.49 | U13: 0.58 | V13: 0.52 | W13: 0.622 | X13: 0.622 | Y13: 0.7 | Z13: 0.7
A14: K | B14: ionisatiefilter | C14: 0.57 | D14: 0.43 | E14: =1-+$D$14*E2 -> 0.7205 | F14: =1-+$D$14*F2 -> 0.828 | G14: 0.8925 | H14: 0.914 | I14: 0.8065 | J14: 0.699 | K14: 0.8022 | L14: 0.7807 | M14: 0.7119 | N14: 0.742 | O14: 0.8151 | P14: 0.7033 | Q14: 0.7033 | R14: 0.6259 | S14: 0.6259 | T14: 0.6345 | U14: 0.699 | V14: 0.656 | W14: 0.7291 | X14: 0.7291 | Y14: 0.785 | Z14: 0.785
A15: L | B15: warmtewisselaar zonder stof 31% | C15: 0.31 | D15: 0.69 | E15: =1-+$D$15*E2 -> 0.5515 | F15: =1-+$D$15*F2 -> 0.724 | G15: 0.8275 | H15: 0.862 | I15: 0.6895 | J15: 0.517 | K15: 0.6826 | L15: 0.6481 | M15: 0.5377 | N15: 0.586 | O15: 0.7033 | P15: 0.5239 | Q15: 0.5239 | R15: 0.3997 | S15: 0.3997 | T15: 0.4135 | U15: 0.517 | V15: 0.448 | W15: 0.5653 | X15: 0.5653 | Y15: 0.655 | Z15: 0.655
A16: M | B16: warmtewisselaar met stof 31% | C16: 0.31 | D16: 0.69 | E16: =1-+$D$16*E2 -> 0.5515 | F16: =1-+$D$16*F2 -> 0.724 | G16: 0.8275 | H16: 0.862 | I16: 0.6895 | J16: 0.517 | K16: 0.6826 | L16: 0.6481 | M16: 0.5377 | N16: 0.586 | O16: 0.7033 | P16: 0.5239 | Q16: 0.5239 | R16: 0.3997 | S16: 0.3997 | T16: 0.4135 | U16: 0.517 | V16: 0.448 | W16: 0.5653 | X16: 0.5653 | Y16: 0.655 | Z16: 0.655
A17: N | B17: warmtewisselaar zonder stof 13% | C17: 0.13 | D17: 0.87 | E17: =1-+$D$17*E2 -> 0.4345 | F17: =1-+$D$17*F2 -> 0.652 | G17: 0.7825 | H17: 0.826 | I17: 0.6085 | J17: 0.391 | K17: 0.5998 | L17: 0.5563 | M17: 0.4171 | N17: 0.478 | O17: 0.6259 | P17: 0.3997 | Q17: 0.3997 | R17: 0.2431 | S17: 0.2431 | T17: 0.2605 | U17: 0.391 | V17: 0.304 | W17: 0.4519 | X17: 0.4519 | Y17: 0.565 | Z17: 0.565
A18: O | B18: warmtewisselaar met stof 13% | C18: 0.13 | D18: 0.87 | E18: =1-+$D$18*E2 -> 0.4345 | F18: =1-+$D$18*F2 -> 0.652 | G18: 0.7825 | H18: 0.826 | I18: 0.6085 | J18: 0.391 | K18: 0.5998 | L18: 0.5563 | M18: 0.4171 | N18: 0.478 | O18: 0.6259 | P18: 0.3997 | Q18: 0.3997 | R18: 0.2431 | S18: 0.2431 | T18: 0.2605 | U18: 0.391 | V18: 0.304 | W18: 0.4519 | X18: 0.4519 | Y18: 0.565 | Z18: 0.565
A19: P | B19: oliefim | C19: 0.15 | D19: 0.85 | E19: =1-+$D$19*E2 -> 0.4475 | F19: =1-+$D$19*F2 -> 0.66 | G19: 0.7875 | H19: 0.83 | I19: 0.6175 | J19: 0.405 | K19: 0.609 | L19: 0.5665 | M19: 0.4305 | N19: 0.49 | O19: 0.6345 | P19: 0.4135 | Q19: 0.4135 | R19: 0.2605 | S19: 0.2605 | T19: 0.2775 | U19: 0.405 | V19: 0.32 | W19: 0.4645 | X19: 0.4645 | Y19: 0.575 | Z19: 0.575
A20: Q | B20: oliefilm | C20: 0.3 | D20: 0.7 | E20: =1-+$D$20*E2 -> 0.545 | F20: =1-+$D$20*F2 -> 0.72 | G20: 0.825 | H20: 0.86 | I20: 0.685 | J20: 0.51 | K20: 0.678 | L20: 0.643 | M20: 0.531 | N20: 0.58 | O20: 0.699 | P20: 0.517 | Q20: 0.517 | R20: 0.391 | S20: 0.391 | T20: 0.405 | U20: 0.51 | V20: 0.44 | W20: 0.559 | X20: 0.559 | Y20: 0.65 | Z20: 0.65
A21: R | B21: strooiselschuif | C21: 0.2 | D21: 0.8 | E21: =1-+$D$21*E2 -> 0.48 | F21: =1-+$D$21*F2 -> 0.68 | G21: 0.8 | H21: 0.84 | I21: 0.64 | J21: 0.44 | K21: 0.632 | L21: 0.592 | M21: 0.464 | N21: 0.52 | O21: 0.656 | P21: 0.448 | Q21: 0.448 | R21: 0.304 | S21: 0.304 | T21: 0.32 | U21: 0.44 | V21: 0.36 | W21: 0.496 | X21: 0.496 | Y21: 0.6 | Z21: 0.6
A22: S | B22: warmtewisselaar zonder stof 37% | C22: 0.37 | D22: 0.63 | E22: =1-+$D$22*E2 -> 0.5905 | F22: =1-+$D$22*F2 -> 0.748 | G22: 0.8425 | H22: 0.874 | I22: 0.7165 | J22: 0.559 | K22: 0.7102 | L22: 0.6787 | M22: 0.5779 | N22: 0.622 | O22: 0.7291 | P22: 0.5653 | Q22: 0.5653 | R22: 0.4519 | S22: 0.4519 | T22: 0.4645 | U22: 0.559 | V22: 0.496 | W22: 0.6031 | X22: 0.6031 | Y22: 0.685 | Z22: 0.685
A23: T | B23: warmtewisselaar met stof 37% | C23: 0.37 | D23: 0.63 | E23: =1-+$D$23*E2 -> 0.5905 | F23: =1-+$D$23*F2 -> 0.748 | G23: 0.8425 | H23: 0.874 | I23: 0.7165 | J23: 0.559 | K23: 0.7102 | L23: 0.6787 | M23: 0.5779 | N23: 0.622 | O23: 0.7291 | P23: 0.5653 | Q23: 0.5653 | R23: 0.4519 | S23: 0.4519 | T23: 0.4645 | U23: 0.559 | V23: 0.496 | W23: 0.6031 | X23: 0.6031 | Y23: 0.685 | Z23: 0.685
A24: U | B24: warmtewisselaar zonder stof 50% | C24: 0.5 | D24: 0.5 | E24: =1-+$D$24*E2 -> 0.675 | F24: =1-+$D$24*F2 -> 0.8 | G24: 0.875 | H24: 0.9 | I24: 0.775 | J24: 0.65 | K24: 0.77 | L24: 0.745 | M24: 0.665 | N24: 0.7 | O24: 0.785 | P24: 0.655 | Q24: 0.655 | R24: 0.565 | S24: 0.565 | T24: 0.575 | U24: 0.65 | V24: 0.6 | W24: 0.685 | X24: 0.685 | Y24: 0.75 | Z24: 0.75
A25: V | B25: warmtewisselaar met stof 50% | C25: 0.5 | D25: 0.5 | E25: =1-+$D$25*E2 -> 0.675 | F25: =1-+$D$25*F2 -> 0.8 | G25: 0.875 | H25: 0.9 | I25: 0.775 | J25: 0.65 | K25: 0.77 | L25: 0.745 | M25: 0.665 | N25: 0.7 | O25: 0.785 | P25: 0.655 | Q25: 0.655 | R25: 0.565 | S25: 0.565 | T25: 0.575 | U25: 0.65 | V25: 0.6 | W25: 0.685 | X25: 0.685 | Y25: 0.75 | Z25: 0.75
B28: percentages berekend door 1 x (1-%)x(1-%)
B29: rood | C29: afwijkend
B30: paars | C30: 1% afwijkend
B31: blauw | C31: kan niet gecombineerd
B32: GEEN TECHNIEK
B33: CHEMISCHE WASSER 35% | C33: ALLE VENTILATIELUCHT
B34: CHEMISCHE WASSER 70% | C34: ALLE VENTILATIELUCHT
B35: BIO WASSER 60% | C35: DEEL VENTILATIELUCHT
B36: BIO WASSER 75%
B37: BIOFILTER | C37: GEEN TECHNIEK
B38: WATERLUCHTWASSYSTEEM | C38: WATERLUCHTWASSYSTEEM
B39: DROOGFILTERWAND | C39: DROOGFILTERWAND
B40: IONISATIEFILTER | C40: IONISATIEFILTER
B41: LUCHTCONDITIONERINGSUNIT
B42: WARMTEWISSELAAR 13% | C42: ALLE VENTILATIELUCHT
B43: WARMTEWISSELAAR 31% | C43: 75% VENTILATIE
B44: WARMTEWISSELAAR 37% | C44: 50% VENTILATIE
B45: WARMTEWISSELAAR 50% | C45: 25% VENTILATIE
B46: ZONDER STOFFILTER
B47: MET STOFFILTER
B48: PARALLEL GESCHAKELD MET WARMTEWISSELAAR
B49: SERIE GESCHAKELD MET WARMTEWISSELAAR
B51: JA | C51: JA
B52: NEE | C52: NEE
C53: =IF(VLEESKUIKENS!$L$20="geen techniek","GEEN TECHNIEK","JA") -> GEEN TECHNIEK
C54: NEE
